Workbook

Sheet Раздел3_1
B2: Раздел 3. Финансово-экономическая деятельность организации
B4: 3.1. Распределение объема средств организации по источникам их получения и видам деятельности
F5: Код по ОКЕИ: тысяча рублей – 384 (с одним десятичным знаком)
B6: Наименование показателей | C6: № строки | D6: Всего (сумма гр. 4, 5) | E6: в том числе по видам деятельности
E7: образовательная | F7: прочие виды
B8: 1 | C8: 2 | D8: 3 | E8: 4 | F8: 5
B9: Объем поступивших средств (за отчетный год) – всего (сумма строк 02, 06, 07, 08, 09) | C9: 01 | D9: =D10+D14+D15+D16+D17 -> 44871.9 | E9: =E10+E14+E15+E16+E17 -> 42734.9 | F9: 2137
B10: в том числе средства: бюджетов всех уровней (субсидий) – всего (сумма строк 03–05) | C10: 02 | D10: =D11+D12+D13 -> 43247.6 | E10: =E11+E12+E13 -> 42146.8 | F10: 1100.8
B11: в том числе бюджета: федерального | C11: 03 | D11: =E11+F11 -> 2570.8 | E11: 2570.8 | F11: 0
B12: субъекта Российской Федерации | C12: 04 | D12: =E12+F12 -> 32896.3 | E12: 32706 | F12: 190.3
B13: местного | C13: 05 | D13: 7780.5 | E13: 6870 | F13: 910.5
B14: организаций | C14: 06 | D14: 1036.2 | E14: 0 | F14: 1036.2
B15: населения | C15: 07 | D15: 588.1 | E15: 588.1 | F15: 0
B16: внебюджетных фондов | C16: 08 | D16: 0 | E16: 0 | F16: 0
B17: иностранных источников | C17: 09 | D17: 0 | E17: 0 | F17: 0
B19: Справка 5.
B21: на начало отчетного года | C21: 10 | D21: 408
B22: на конец отчетного года | C22: 11 | D22: 827.5
B24: Справка 6.
B26: Организация переведена на нормативное подушевое финансирование (код: да – 1, нет – 0)
C27: 12 | D27: 0

Sheet Раздел3_2
C2: 3.2. Расходы организации
B4: Наименование показателей | C4: № строки | D4: Всего | E4: в том числе осуществляемые
E5: за счет средств бюджетов всех уровней (субсидий) | F5: из них (из гр. 4) – за счет средств на выполнение государственного (муниципального) задания
B6: 1 | C6: 2 | D6: 3 | E6: 4 | F6: 5
B7: Расходы (сумма строк 02, 06, 13, 14) | C7: 01 | D7: =D8+D12+D19+D20 -> 37,513.9 | E7: =E8+E12+E19+E20 -> 36,119.4 | F7: 35,839.9
B8: в том числе: оплата труда и начисления на выплаты по оплате труда (сумма строк 03–05) | C8: 02 | D8: =D9+D10+D11 -> 33,627.3 | E8: =E9+E10+E11 -> 32,343.9 | F8: 32,310.5
B9: заработная плата | C9: 03 | D9: =25245.9+G9 -> 25,848.9 | E9: 24,863.2 | F9: 24,837.5 | G9: 603
B10: прочие выплаты | C10: 04 | D10: 0.0 | E10: 0.0 | F10: 0.0
B11: начисления на выплаты по оплате труда | C11: 05 | D11: =7596.3+G11 -> 7,778.4 | E11: 7,480.7 | F11: 7,473.0 | G11: 182.1
B12: оплата работ, услуг (сумма строк 07–12) | C12: 06 | D12: =D13+D14+D15+D16+D17+D18 -> 3,551.8 | E12: 3,450.7 | F12: 3,204.6
B13: в том числе: услуги связи | C13: 07 | D13: 20.9 | E13: 20.9 | F13: 20.9
B14: транспортные услуги | C14: 08 | D14: 0.0 | E14: 0.0 | F14: 0.0
B15: коммунальные услуги | C15: 09 | D15: 2,325.5 | E15: 2,325.5 | F15: 2,325.5
B16: арендная плата за пользование имуществом | C16: 10 | D16: 0.0 | E16: 0.0 | F16: 0.0
B17: работы, услуги по содержанию имущества | C17: 11 | D17: 246.3 | E17: 216.8 | F17: 216.8
B18: прочие работы, услуги | C18: 12 | D18: 959.1 | E18: 887.5 | F18: 641.4
B19: социальное обеспечение | C19: 13 | D19: 0.0 | E19: 0.0 | F19: 0.0
B20: прочие расходы | C20: 14 | D20: 334.8 | E20: 324.8 | F20: 324.8
B21: Поступление нефинансовых активов (сумма строк 16-19) | C21: 15 | D21: =D22+D23+D24+D25 -> 6,938.5 | E21: 4,071.3 | F21: 4,003.1
B22: в том числе: увеличение стоимости основных средств | C22: 16 | D22: 4,665.3 | E22: 3,659.1 | F22: 3,659.1
B23: увеличение стоимости нематериальных активов | C23: 17 | D23: 0.0 | E23: 0.0 | F23: 0.0
B24: увеличение стоимости непроизведенных активов | C24: 18 | D24: 0.0 | E24: 0.0 | F24: 0.0
B25: увеличение стоимости материальных запасов | C25: 19 | D25: =487.5+G25 -> 2,273.2 | E25: 412.2 | F25: 344.0 | G25: 1785.7
B27: Справка 7.
B29: Наличие программы энергосбережения в организации (код: да – 1, нет – 0) | C29: 20 | D29: 0
